[Event "Titled Tuesday Blitz May 30 Late 2023"]
[White "Cruz, Jonathan"]
[Black "Karas, Marek"]
[WhiteFideId "3802124"]
[BlackFideId "14928558"]
[WhiteElo "2407"]
[BlackElo "2233"]
[Result "0-1"]
[Round "05"]
[TimeControl "180+2"]
[Date "2023.05.31"]
[WhiteClock "0:00:06"]
[BlackClock "0:00:34"]

1. Nf3 {[%clk 0:02:50]}  Nf6 {[%clk 0:02:58]} 2. g3 {[%clk 0:02:49]}  d5 {[%clk 0:02:57]} 3. Bg2 {[%clk 0:02:49]}  Bg4 {[%clk 0:02:56]} 4. O-O {[%clk 0:02:47]}  e6 {[%clk 0:02:57]} 5. c4 {[%clk 0:02:41]}  Bxf3 {[%clk 0:02:51]} 6. Bxf3 {[%clk 0:02:40]}  c6 {[%clk 0:02:51]} 7. Qb3 {[%clk 0:02:32]}  Qb6 {[%clk 0:02:51]} 8. Qc2 {[%clk 0:02:32]}  Be7 {[%clk 0:02:38]} 9. b3 {[%clk 0:02:29]}  O-O {[%clk 0:02:34]} 10. Bb2 {[%clk 0:02:27]}  Nbd7 {[%clk 0:02:34]} 11. Nc3 {[%clk 0:02:17]}  Rfe8 {[%clk 0:02:24]} 12. Bg2 {[%clk 0:02:13]}  Bf8 {[%clk 0:02:17]} 13. Rac1 {[%clk 0:02:02]}  g6 {[%clk 0:02:14]} 14. e3 {[%clk 0:01:28]}  Bg7 {[%clk 0:02:12]} 15. d4 {[%clk 0:01:28]}  Qd8 {[%clk 0:02:04]} 16. Rcd1 {[%clk 0:01:22]}  Qe7 {[%clk 0:01:58]} 17. e4 {[%clk 0:01:12]}  dxe4 {[%clk 0:01:58]} 18. Nxe4 {[%clk 0:01:13]}  Nxe4 {[%clk 0:01:57]} 19. Bxe4 {[%clk 0:01:12]}  Nf6 {[%clk 0:01:56]} 20. Bf3 {[%clk 0:01:06]}  Rad8 {[%clk 0:01:57]} 21. Rfe1 {[%clk 0:01:03]}  Qc7 {[%clk 0:01:55]} 22. Rd3 {[%clk 0:00:56]}  Nd7 {[%clk 0:01:52]} 23. Red1 {[%clk 0:00:55]}  e5 {[%clk 0:01:43]} 24. dxe5 {[%clk 0:00:41]}  Nxe5 {[%clk 0:01:44]} 25. Bxe5 {[%clk 0:00:37]}  Bxe5 {[%clk 0:01:40]} 26. Rxd8 {[%clk 0:00:35]}  Rxd8 {[%clk 0:01:41]} 27. Re1 {[%clk 0:00:34]}  Kg7 {[%clk 0:01:38]} 28. Kg2 {[%clk 0:00:34]}  Bf6 {[%clk 0:01:38]} 29. Re2 {[%clk 0:00:28]}  h5 {[%clk 0:01:37]} 30. Qe4 {[%clk 0:00:28]}  Qd6 {[%clk 0:01:36]} 31. h4 {[%clk 0:00:28]}  a5 {[%clk 0:01:33]} 32. Qe3 {[%clk 0:00:28]}  a4 {[%clk 0:01:27]} 33. bxa4 {[%clk 0:00:18]}  Qb4 {[%clk 0:01:25]} 34. Qb3 {[%clk 0:00:18]}  Qxb3 {[%clk 0:01:20]} 35. axb3 {[%clk 0:00:19]}  Rd3 {[%clk 0:01:19]} 36. b4 {[%clk 0:00:18]}  Ra3 {[%clk 0:01:13]} 37. a5 {[%clk 0:00:15]}  Bc3 {[%clk 0:01:10]} 38. b5 {[%clk 0:00:14]}  cxb5 {[%clk 0:01:02]} 39. cxb5 {[%clk 0:00:14]}  Rxa5 {[%clk 0:01:02]} 40. Bxb7 {[%clk 0:00:06]}  Rxb5 {[%clk 0:01:03]} 41. Bf3 {[%clk 0:00:06]}  Kf6 {[%clk 0:01:02]} 42. Rc2 {[%clk 0:00:05]}  Be5 {[%clk 0:01:01]} 43. Ra2 {[%clk 0:00:06]}  Rb2 {[%clk 0:00:59]} 44. Ra4 {[%clk 0:00:05]}  Rd2 {[%clk 0:00:58]} 45. Be4 {[%clk 0:00:03]}  Bd4 {[%clk 0:00:56]} 46. Kh3 {[%clk 0:00:01]}  Bxf2 {[%clk 0:00:54]} 47. Ra6+ {[%clk 0:00:02]}  Kg7 {[%clk 0:00:52]} 48. Bf3 {[%clk 0:00:01]}  Rb2 {[%clk 0:00:47]} 49. Bg2 {[%clk 0:00:01]}  Rb3 {[%clk 0:00:46]} 50. Rc6 {[%clk 0:00:02]}  Rxg3+ {[%clk 0:00:46]} 51. Kh2 {[%clk 0:00:02]}  Rg4 {[%clk 0:00:45]} 52. Bf3 {[%clk 0:00:02]}  Rxh4+ {[%clk 0:00:44]} 53. Kg2 {[%clk 0:00:03]}  Bd4 {[%clk 0:00:44]} 54. Rd6 {[%clk 0:00:04]}  Bf6 {[%clk 0:00:43]} 55. Rd7 {[%clk 0:00:04]}  Rd4 {[%clk 0:00:43]} 56. Bd5 {[%clk 0:00:05]}  Kh6 {[%clk 0:00:37]} 57. Kf3 {[%clk 0:00:05]}  Bg5 {[%clk 0:00:34]} 58. Kg2 {[%clk 0:00:02]}  f5 {[%clk 0:00:32]} 59. Be6 {[%clk 0:00:02]}  Rxd7 {[%clk 0:00:32]} 60. Bxd7 {[%clk 0:00:03]}  Bf6 {[%clk 0:00:32]} 61. Be8 {[%clk 0:00:02]}  Kg5 {[%clk 0:00:32]} 62. Kf3 {[%clk 0:00:02]}  h4 {[%clk 0:00:32]} 63. Bf7 {[%clk 0:00:01]}  Be5 {[%clk 0:00:32]} 64. Be8 {[%clk 0:00:01]}  Kf6 {[%clk 0:00:32]} 65. Bd7 {[%clk 0:00:01]}  g5 {[%clk 0:00:32]} 66. Bc8 {[%clk 0:00:01]}  g4+ {[%clk 0:00:32]} 67. Kg2 {[%clk 0:00:01]}  Kg5 {[%clk 0:00:33]} 68. Bb7 {[%clk 0:00:01]}  h3+ {[%clk 0:00:33]} 69. Kh1 {[%clk 0:00:01]}  g3 {[%clk 0:00:32]} 70. Bf3 {[%clk 0:00:01]}  g2+ {[%clk 0:00:31]} 71. Bxg2 {[%clk 0:00:01]}  hxg2+ {[%clk 0:00:32]} 72. Kxg2 {[%clk 0:00:02]}  Kg4 {[%clk 0:00:32]} 73. Kf2 {[%clk 0:00:03]}  f4 {[%clk 0:00:33]} 74. Kg2 {[%clk 0:00:03]}  f3+ {[%clk 0:00:34]} 75. Kf1 {[%clk 0:00:04]}  Kg3 {[%clk 0:00:34]} 76. Kg1 {[%clk 0:00:05]}  f2+ {[%clk 0:00:33]} 77. Kf1 {[%clk 0:00:06]}  Bf4 {[%clk 0:00:34]} 0-1


[Site "https://www.chess.com"]

[Event "Titled Tuesday Blitz May 30 Late 2023"]
[White "Jaracz, Pawel"]
[Black "Kielinkei"]
[WhiteFideId "1102222"]
[WhiteElo "2438"]
[BlackElo "2477"]
[Result "1-0"]
[Round "05"]
[TimeControl "180+2"]
[Date "2023.05.31"]
[WhiteClock "0:00:31"]
[BlackClock "0:00:02"]

1. d4 {[%clk 0:03:00]}  Nf6 {[%clk 0:02:58]} 2. c4 {[%clk 0:03:01]}  e6 {[%clk 0:02:59]} 3. Nf3 {[%clk 0:03:00]}  c5 {[%clk 0:02:57]} 4. d5 {[%clk 0:02:59]}  exd5 {[%clk 0:02:58]} 5. cxd5 {[%clk 0:03:00]}  b5 {[%clk 0:02:59]} 6. a4 {[%clk 0:02:52]}  bxa4 {[%clk 0:02:53]} 7. Nc3 {[%clk 0:02:51]}  d6 {[%clk 0:02:52]} 8. e4 {[%clk 0:02:48]}  Be7 {[%clk 0:02:40]} 9. Bb5+ {[%clk 0:02:47]}  Bd7 {[%clk 0:02:33]} 10. Qxa4 {[%clk 0:02:46]}  O-O {[%clk 0:02:31]} 11. O-O {[%clk 0:02:44]}  Bxb5 {[%clk 0:02:24]} 12. Qxb5 {[%clk 0:02:41]}  Qc7 {[%clk 0:02:21]} 13. Bf4 {[%clk 0:02:40]}  Nbd7 {[%clk 0:02:19]} 14. Rfe1 {[%clk 0:02:29]}  Rab8 {[%clk 0:01:42]} 15. Qc6 {[%clk 0:02:28]}  Rfc8 {[%clk 0:01:38]} 16. Qxc7 {[%clk 0:02:18]}  Rxc7 {[%clk 0:01:38]} 17. e5 {[%clk 0:02:18]}  dxe5 {[%clk 0:01:31]} 18. Nxe5 {[%clk 0:02:17]}  Bd6 {[%clk 0:01:19]} 19. Nxd7 {[%clk 0:01:43]}  Rxd7 {[%clk 0:01:17]} 20. Bg5 {[%clk 0:01:35]}  Rxb2 {[%clk 0:01:10]} 21. Bxf6 {[%clk 0:01:33]}  gxf6 {[%clk 0:01:11]} 22. Re8+ {[%clk 0:01:25]}  Kg7 {[%clk 0:01:11]} 23. Ne4 {[%clk 0:01:24]}  Be5 {[%clk 0:01:10]} 24. Re1 {[%clk 0:00:56]}  Rxd5 {[%clk 0:01:05]} 25. g3 {[%clk 0:00:56]}  a5 {[%clk 0:00:54]} 26. Ra8 {[%clk 0:00:53]}  Ra2 {[%clk 0:00:53]} 27. Rb1 {[%clk 0:00:47]}  a4 {[%clk 0:00:46]} 28. Kg2 {[%clk 0:00:39]}  c4 {[%clk 0:00:34]} 29. Rb7 {[%clk 0:00:38]}  f5 {[%clk 0:00:13]} 30. Ng5 {[%clk 0:00:38]}  Rdd2 {[%clk 0:00:12]} 31. Rxf7+ {[%clk 0:00:35]}  Kh6 {[%clk 0:00:11]} 32. Rxf5 {[%clk 0:00:35]}  Bd4 {[%clk 0:00:06]} 33. Ra6+ {[%clk 0:00:33]}  Kh5 {[%clk 0:00:02]} 34. Nf3+ {[%clk 0:00:31]}  Kg4 {[%clk 0:00:02]} 35. Rg5# {[%clk 0:00:31]} 1-0


[Site "https://www.chess.com"]

[Event "Titled Tuesday Blitz May 30 Late 2023"]
[White "Sieciechowicz, Marcin"]
[Black "Sanhueza, Cristian"]
[WhiteFideId "1130170"]
[BlackFideId "116815"]
[WhiteElo "2302"]
[BlackElo "2174"]
[Result "1-0"]
[Round "05"]
[TimeControl "180+2"]
[Date "2023.05.31"]
[WhiteClock "0:02:42"]
[BlackClock "0:00:53"]

1. d4 {[%clk 0:03:00]}  Nf6 {[%clk 0:02:53]} 2. Bf4 {[%clk 0:03:01]}  d6 {[%clk 0:02:45]} 3. e3 {[%clk 0:03:01]}  g6 {[%clk 0:02:43]} 4. Nf3 {[%clk 0:03:01]}  Bg7 {[%clk 0:02:43]} 5. Be2 {[%clk 0:03:02]}  O-O {[%clk 0:02:44]} 6. O-O {[%clk 0:03:02]}  Nbd7 {[%clk 0:02:40]} 7. h3 {[%clk 0:03:01]}  b6 {[%clk 0:02:41]} 8. a4 {[%clk 0:03:01]}  a6 {[%clk 0:02:41]} 9. c3 {[%clk 0:03:00]}  Bb7 {[%clk 0:02:41]} 10. Nbd2 {[%clk 0:03:01]}  c5 {[%clk 0:02:28]} 11. Bh2 {[%clk 0:03:01]}  Ra7 {[%clk 0:02:16]} 12. Qb3 {[%clk 0:03:01]}  Qa8 {[%clk 0:02:14]} 13. Ne1 {[%clk 0:03:00]}  e5 {[%clk 0:02:07]} 14. dxe5 {[%clk 0:02:59]}  dxe5 {[%clk 0:01:55]} 15. Bf3 {[%clk 0:02:56]}  Re8 {[%clk 0:01:30]} 16. Bxb7 {[%clk 0:02:56]}  Qxb7 {[%clk 0:01:25]} 17. Nc4 {[%clk 0:02:55]}  Qc6 {[%clk 0:01:08]} 18. Rd1 {[%clk 0:02:53]}  Ne4 {[%clk 0:00:56]} 19. f3 {[%clk 0:02:44]}  b5 {[%clk 0:00:55]} 20. Na5 {[%clk 0:02:43]}  Qc7 {[%clk 0:00:55]} 21. fxe4 {[%clk 0:02:43]}  Qxa5 {[%clk 0:00:53]} 22. Qxf7+ {[%clk 0:02:42]} 1-0


[Site "https://www.chess.com"]

[Event "Titled Tuesday Blitz May 30 Late 2023"]
[White "egorchess95"]
[Black "Omariev, Maksim"]
[BlackFideId "4193423"]
[WhiteElo "2671"]
[BlackElo "2468"]
[Result "0-1"]
[Round "05"]
[TimeControl "180+2"]
[Date "2023.05.31"]
[WhiteClock "0:01:12"]
[BlackClock "0:00:22"]

1. Nf3 {[%clk 0:02:59]}  d5 {[%clk 0:02:59]} 2. b3 {[%clk 0:02:59]}  c5 {[%clk 0:02:58]} 3. Bb2 {[%clk 0:02:59]}  Nc6 {[%clk 0:02:59]} 4. e3 {[%clk 0:02:58]}  a6 {[%clk 0:02:59]} 5. c4 {[%clk 0:02:56]}  Nf6 {[%clk 0:02:58]} 6. a3 {[%clk 0:02:51]}  d4 {[%clk 0:02:51]} 7. exd4 {[%clk 0:02:42]}  cxd4 {[%clk 0:01:59]} 8. d3 {[%clk 0:02:42]}  Bg4 {[%clk 0:01:50]} 9. Be2 {[%clk 0:02:39]}  e5 {[%clk 0:01:37]} 10. O-O {[%clk 0:02:32]}  Bf5 {[%clk 0:01:01]} 11. Re1 {[%clk 0:02:27]}  Bd6 {[%clk 0:01:01]} 12. b4 {[%clk 0:02:27]}  O-O {[%clk 0:01:00]} 13. Bf1 {[%clk 0:02:27]}  Re8 {[%clk 0:00:54]} 14. Nbd2 {[%clk 0:02:26]}  h6 {[%clk 0:00:48]} 15. Rc1 {[%clk 0:02:27]}  Nd7 {[%clk 0:00:42]} 16. g3 {[%clk 0:02:20]}  Rc8 {[%clk 0:00:41]} 17. c5 {[%clk 0:02:13]}  Bb8 {[%clk 0:00:41]} 18. Nc4 {[%clk 0:02:13]}  f6 {[%clk 0:00:30]} 19. Bg2 {[%clk 0:02:13]}  Bg4 {[%clk 0:00:25]} 20. Qb3 {[%clk 0:02:10]}  Kh8 {[%clk 0:00:24]} 21. Nh4 {[%clk 0:02:08]}  Nf8 {[%clk 0:00:21]} 22. Nb6 {[%clk 0:02:06]}  Rc7 {[%clk 0:00:19]} 23. a4 {[%clk 0:01:49]}  Be6 {[%clk 0:00:19]} 24. Qa3 {[%clk 0:01:49]}  g5 {[%clk 0:00:20]} 25. Nf3 {[%clk 0:01:49]}  Kg7 {[%clk 0:00:20]} 26. b5 {[%clk 0:01:48]}  axb5 {[%clk 0:00:20]} 27. axb5 {[%clk 0:01:49]}  Ne7 {[%clk 0:00:21]} 28. Nd2 {[%clk 0:01:43]}  Nd5 {[%clk 0:00:21]} 29. Nxd5 {[%clk 0:01:39]}  Bxd5 {[%clk 0:00:22]} 30. Ne4 {[%clk 0:01:40]}  Ne6 {[%clk 0:00:20]} 31. Nd6 {[%clk 0:01:38]}  Bxg2 {[%clk 0:00:20]} 32. Nxe8+ {[%clk 0:01:39]}  Qxe8 {[%clk 0:00:20]} 33. Kxg2 {[%clk 0:01:39]}  Qxb5 {[%clk 0:00:21]} 34. Rc4 {[%clk 0:01:35]}  Nxc5 {[%clk 0:00:20]} 35. Rec1 {[%clk 0:01:31]}  b6 {[%clk 0:00:21]} 36. Ba1 {[%clk 0:01:28]}  Ra7 {[%clk 0:00:21]} 37. Qb4 {[%clk 0:01:23]}  Qxb4 {[%clk 0:00:20]} 38. Rxb4 {[%clk 0:01:24]}  Nxd3 {[%clk 0:00:21]} 39. Rbb1 {[%clk 0:01:09]}  Nxc1 {[%clk 0:00:21]} 40. Rxc1 {[%clk 0:01:10]}  Bd6 {[%clk 0:00:21]} 41. Kf3 {[%clk 0:01:11]}  f5 {[%clk 0:00:20]} 42. g4 {[%clk 0:01:11]}  Kf6 {[%clk 0:00:20]} 43. gxf5 {[%clk 0:01:11]}  Kxf5 {[%clk 0:00:20]} 44. Rc6 {[%clk 0:01:12]}  Bc5 {[%clk 0:00:21]} 45. Bb2 {[%clk 0:01:11]}  e4+ {[%clk 0:00:21]} 46. Kg3 {[%clk 0:01:11]}  Ra2 {[%clk 0:00:21]} 47. Bc1 {[%clk 0:01:12]}  h5 {[%clk 0:00:21]} 48. h4 {[%clk 0:01:11]}  gxh4+ {[%clk 0:00:21]} 49. Kxh4 {[%clk 0:01:11]}  Rxf2 {[%clk 0:00:21]} 50. Rc7 {[%clk 0:01:12]}  Rh2+ {[%clk 0:00:21]} 51. Kg3 {[%clk 0:01:12]}  Rc2 {[%clk 0:00:22]} 52. Bh6 {[%clk 0:01:12]}  Bd6+ {[%clk 0:00:22]} 0-1


[Site "https://www.chess.com"]

[Event "Titled Tuesday Blitz May 30 Late 2023"]
[White "Bjelobrk, Igor"]
[Black "Pasti, Aron"]
[WhiteFideId "4300726"]
[BlackFideId "785857"]
[WhiteElo "2319"]
[BlackElo "2173"]
[Result "0-1"]
[Round "05"]
[TimeControl "180+2"]
[Date "2023.05.31"]
[WhiteClock "0:00:09"]
[BlackClock "0:00:27"]

1. d4 {[%clk 0:03:00]}  d5 {[%clk 0:02:58]} 2. c4 {[%clk 0:03:00]}  e6 {[%clk 0:02:58]} 3. Nf3 {[%clk 0:02:59]}  Nf6 {[%clk 0:02:58]} 4. g3 {[%clk 0:02:59]}  Be7 {[%clk 0:02:59]} 5. Bg2 {[%clk 0:02:57]}  O-O {[%clk 0:02:59]} 6. O-O {[%clk 0:02:56]}  Nbd7 {[%clk 0:02:59]} 7. Qc2 {[%clk 0:02:54]}  c6 {[%clk 0:02:58]} 8. Rd1 {[%clk 0:02:50]}  b6 {[%clk 0:02:42]} 9. b3 {[%clk 0:02:49]}  Bb7 {[%clk 0:02:36]} 10. Nc3 {[%clk 0:02:42]}  Qc8 {[%clk 0:02:30]} 11. e4 {[%clk 0:02:39]}  dxc4 {[%clk 0:02:28]} 12. bxc4 {[%clk 0:02:38]}  e5 {[%clk 0:02:15]} 13. dxe5 {[%clk 0:02:33]}  Ng4 {[%clk 0:02:14]} 14. Bh3 {[%clk 0:02:33]}  h5 {[%clk 0:02:12]} 15. Bf4 {[%clk 0:02:31]}  Qe8 {[%clk 0:02:06]} 16. Qe2 {[%clk 0:01:59]}  Nc5 {[%clk 0:02:04]} 17. Nd4 {[%clk 0:01:56]}  f6 {[%clk 0:01:56]} 18. e6 {[%clk 0:01:51]}  Ne5 {[%clk 0:01:35]} 19. Nf5 {[%clk 0:01:35]}  Ba6 {[%clk 0:01:25]} 20. Bxe5 {[%clk 0:01:34]}  fxe5 {[%clk 0:01:25]} 21. Nd6 {[%clk 0:01:16]}  Bxd6 {[%clk 0:01:12]} 22. Rxd6 {[%clk 0:01:17]}  Bc8 {[%clk 0:01:10]} 23. Nd5 {[%clk 0:00:53]}  cxd5 {[%clk 0:00:53]} 24. exd5 {[%clk 0:00:46]}  Qe7 {[%clk 0:00:50]} 25. Rc6 {[%clk 0:00:45]}  Bb7 {[%clk 0:00:42]} 26. d6 {[%clk 0:00:43]}  Qf6 {[%clk 0:00:42]} 27. Rc7 {[%clk 0:00:41]}  Bf3 {[%clk 0:00:38]} 28. Qe3 {[%clk 0:00:38]}  Nxe6 {[%clk 0:00:38]} 29. Qxf3 {[%clk 0:00:16]}  Qxf3 {[%clk 0:00:30]} 30. Bxe6+ {[%clk 0:00:16]}  Kh8 {[%clk 0:00:30]} 31. Rf1 {[%clk 0:00:16]}  Qf6 {[%clk 0:00:27]} 32. Re7 {[%clk 0:00:09]}  Rfe8 {[%clk 0:00:27]} 0-1


[Site "https://www.chess.com"]

[Event "Titled Tuesday Blitz May 30 Late 2023"]
[White "Bitoon, Richard"]
[Black "Zaitsev, Alexander"]
[WhiteFideId "5201110"]
[BlackFideId "4164490"]
[WhiteElo "2374"]
[BlackElo "2373"]
[Result "1-0"]
[Round "05"]
[TimeControl "180+2"]
[Date "2023.05.31"]
[WhiteClock "0:00:44"]
[BlackClock "0:00:18"]

1. e4 {[%clk 0:03:00]}  c5 {[%clk 0:02:59]} 2. c3 {[%clk 0:03:00]}  d5 {[%clk 0:02:59]} 3. exd5 {[%clk 0:03:01]}  Qxd5 {[%clk 0:02:59]} 4. d4 {[%clk 0:03:01]}  Nc6 {[%clk 0:03:00]} 5. Nf3 {[%clk 0:03:02]}  Bf5 {[%clk 0:03:00]} 6. Be3 {[%clk 0:03:01]}  Nf6 {[%clk 0:02:59]} 7. c4 {[%clk 0:02:57]}  Qd6 {[%clk 0:02:38]} 8. d5 {[%clk 0:02:57]}  Nb4 {[%clk 0:02:32]} 9. Na3 {[%clk 0:02:57]}  e6 {[%clk 0:02:18]} 10. Nb5 {[%clk 0:02:39]}  Qb6 {[%clk 0:02:04]} 11. Qa4 {[%clk 0:02:36]}  O-O-O {[%clk 0:01:51]} 12. Qxb4 {[%clk 0:02:18]}  cxb4 {[%clk 0:01:39]} 13. Bxb6 {[%clk 0:02:16]}  axb6 {[%clk 0:01:40]} 14. Ne5 {[%clk 0:02:16]}  Bg6 {[%clk 0:01:34]} 15. dxe6 {[%clk 0:02:13]}  fxe6 {[%clk 0:01:26]} 16. Nxg6 {[%clk 0:02:12]}  hxg6 {[%clk 0:01:26]} 17. Be2 {[%clk 0:02:10]}  Bc5 {[%clk 0:01:18]} 18. Bf3 {[%clk 0:01:40]}  e5 {[%clk 0:01:03]} 19. Rd1 {[%clk 0:01:29]}  e4 {[%clk 0:01:01]} 20. Be2 {[%clk 0:01:28]}  Rxd1+ {[%clk 0:00:57]} 21. Bxd1 {[%clk 0:01:29]}  e3 {[%clk 0:00:56]} 22. fxe3 {[%clk 0:01:26]}  Bxe3 {[%clk 0:00:57]} 23. Bf3 {[%clk 0:01:18]}  g5 {[%clk 0:00:53]} 24. Nd6+ {[%clk 0:01:10]}  Kc7 {[%clk 0:00:51]} 25. Nf5 {[%clk 0:01:06]}  Bf4 {[%clk 0:00:44]} 26. Nxg7 {[%clk 0:01:06]}  Be5 {[%clk 0:00:39]} 27. Ne6+ {[%clk 0:01:04]}  Kd6 {[%clk 0:00:37]} 28. Nxg5 {[%clk 0:01:04]}  Rxh2 {[%clk 0:00:24]} 29. Rxh2 {[%clk 0:00:55]}  Bxh2 {[%clk 0:00:25]} 30. Bxb7 {[%clk 0:00:55]}  Kc5 {[%clk 0:00:21]} 31. b3 {[%clk 0:00:55]}  Kd4 {[%clk 0:00:21]} 32. Nf3+ {[%clk 0:00:55]}  Kc3 {[%clk 0:00:21]} 33. Nxh2 {[%clk 0:00:56]}  Kb2 {[%clk 0:00:22]} 34. Bf3 {[%clk 0:00:52]}  Kxa2 {[%clk 0:00:21]} 35. Bd1 {[%clk 0:00:53]}  Ne4 {[%clk 0:00:20]} 36. g4 {[%clk 0:00:53]}  Nc3 {[%clk 0:00:18]} 37. g5 {[%clk 0:00:54]}  Nxd1 {[%clk 0:00:19]} 38. Kxd1 {[%clk 0:00:54]}  Kxb3 {[%clk 0:00:19]} 39. g6 {[%clk 0:00:55]}  Ka2 {[%clk 0:00:17]} 40. g7 {[%clk 0:00:54]}  b3 {[%clk 0:00:18]} 41. g8=Q {[%clk 0:00:53]}  b2 {[%clk 0:00:18]} 42. c5+ {[%clk 0:00:45]}  Ka1 {[%clk 0:00:18]} 43. Qa8+ {[%clk 0:00:44]}  Kb1 {[%clk 0:00:18]} 44. c6 {[%clk 0:00:44]}  b5 {[%clk 0:00:17]} 45. c7 {[%clk 0:00:44]}  b4 {[%clk 0:00:18]} 46. c8=Q {[%clk 0:00:44]}  b3 {[%clk 0:00:18]} 47. Qf5# {[%clk 0:00:44]} 1-0


[Site "https://www.chess.com"]

[Event "Titled Tuesday Blitz May 30 Late 2023"]
[White "Mujumdar, Sameer"]
[Black "Grinev, Valeriy"]
[WhiteFideId "2029707"]
[BlackFideId "14117517"]
[WhiteElo "2104"]
[BlackElo "2366"]
[Result "1-0"]
[Round "05"]
[TimeControl "180+2"]
[Date "2023.05.31"]
[WhiteClock "0:01:06"]
[BlackClock "0:01:30"]

1. d4 {[%clk 0:03:00]}  c5 {[%clk 0:03:00]} 2. d5 {[%clk 0:02:59]}  d6 {[%clk 0:03:00]} 3. Nc3 {[%clk 0:02:59]}  g6 {[%clk 0:03:01]} 4. e4 {[%clk 0:03:00]}  Bg7 {[%clk 0:03:01]} 5. Be3 {[%clk 0:02:58]}  a6 {[%clk 0:02:59]} 6. a4 {[%clk 0:02:58]}  Nf6 {[%clk 0:02:55]} 7. Qd2 {[%clk 0:02:54]}  O-O {[%clk 0:02:55]} 8. Bh6 {[%clk 0:02:52]}  e6 {[%clk 0:02:54]} 9. Bxg7 {[%clk 0:02:52]}  Kxg7 {[%clk 0:02:42]} 10. dxe6 {[%clk 0:02:50]}  Bxe6 {[%clk 0:02:40]} 11. Rd1 {[%clk 0:02:45]}  Nc6 {[%clk 0:02:38]} 12. f3 {[%clk 0:02:31]}  d5 {[%clk 0:02:38]} 13. exd5 {[%clk 0:02:26]}  Nxd5 {[%clk 0:02:33]} 14. Nxd5 {[%clk 0:02:25]}  Bxd5 {[%clk 0:02:31]} 15. Qxd5 {[%clk 0:02:24]}  Re8+ {[%clk 0:02:32]} 16. Kf2 {[%clk 0:02:10]}  Qh4+ {[%clk 0:02:28]} 17. g3 {[%clk 0:02:11]}  Qe7 {[%clk 0:02:23]} 18. Qd2 {[%clk 0:02:07]}  Rad8 {[%clk 0:02:22]} 19. Qc3+ {[%clk 0:02:07]}  Nd4 {[%clk 0:02:21]} 20. Ne2 {[%clk 0:01:57]}  Kg8 {[%clk 0:02:18]} 21. Nxd4 {[%clk 0:01:56]}  cxd4 {[%clk 0:02:17]} 22. Qd2 {[%clk 0:01:56]}  Qc5 {[%clk 0:02:10]} 23. Bd3 {[%clk 0:01:56]}  Re3 {[%clk 0:02:10]} 24. Rhe1 {[%clk 0:01:53]}  Rde8 {[%clk 0:02:10]} 25. Kg2 {[%clk 0:01:30]}  h5 {[%clk 0:02:08]} 26. Rxe3 {[%clk 0:01:29]}  dxe3 {[%clk 0:02:07]} 27. Qc3 {[%clk 0:01:26]}  Qb6 {[%clk 0:02:02]} 28. Re1 {[%clk 0:01:25]}  h4 {[%clk 0:01:54]} 29. Qb3 {[%clk 0:01:24]}  Qf6 {[%clk 0:01:52]} 30. Qxb7 {[%clk 0:01:20]}  hxg3 {[%clk 0:01:51]} 31. hxg3 {[%clk 0:01:21]}  a5 {[%clk 0:01:44]} 32. Qb5 {[%clk 0:01:14]}  Re5 {[%clk 0:01:37]} 33. Qb8+ {[%clk 0:01:13]}  Kg7 {[%clk 0:01:36]} 34. Rh1 {[%clk 0:01:13]}  Rh5 {[%clk 0:01:32]} 35. Rxh5 {[%clk 0:01:13]}  gxh5 {[%clk 0:01:32]} 36. Qf4 {[%clk 0:01:10]}  Qxb2 {[%clk 0:01:30]} 37. Qxe3 {[%clk 0:01:09]}  Qf6 {[%clk 0:01:27]} 38. f4 {[%clk 0:01:07]}  Qc6+ {[%clk 0:01:26]} 39. Qe4 {[%clk 0:01:07]}  Qc3 {[%clk 0:01:26]} 40. Qe5+ {[%clk 0:01:07]}  Qxe5 {[%clk 0:01:26]} 41. fxe5 {[%clk 0:01:07]}  f6 {[%clk 0:01:27]} 42. exf6+ {[%clk 0:01:07]}  Kxf6 {[%clk 0:01:27]} 43. Kf3 {[%clk 0:01:08]}  Ke5 {[%clk 0:01:27]} 44. Ke3 {[%clk 0:01:08]}  Kd5 {[%clk 0:01:26]} 45. c4+ {[%clk 0:01:08]}  Kc5 {[%clk 0:01:27]} 46. Kf4 {[%clk 0:01:07]}  Kd4 {[%clk 0:01:27]} 47. Kg5 {[%clk 0:01:04]}  h4 {[%clk 0:01:28]} 48. gxh4 {[%clk 0:01:04]}  Kxd3 {[%clk 0:01:28]} 49. c5 {[%clk 0:01:04]}  Kc4 {[%clk 0:01:28]} 50. c6 {[%clk 0:01:05]}  Kb4 {[%clk 0:01:29]} 51. c7 {[%clk 0:01:05]}  Kxa4 {[%clk 0:01:30]} 52. c8=Q {[%clk 0:01:06]} 1-0


[Site "https://www.chess.com"]

[Event "Titled Tuesday Blitz May 30 Late 2023"]
[White "Kleiman, Jake"]
[Black "KorolDimitriy75"]
[WhiteFideId "2020041"]
[WhiteElo "2591"]
[BlackElo "2427"]
[Result "1/2-1/2"]
[Round "05"]
[TimeControl "180+2"]
[Date "2023.05.31"]
[WhiteClock "0:00:13"]
[BlackClock "0:00:05"]

1. e4 {[%clk 0:03:00]}  c5 {[%clk 0:02:59]} 2. c3 {[%clk 0:03:01]}  d5 {[%clk 0:02:59]} 3. exd5 {[%clk 0:03:01]}  Qxd5 {[%clk 0:02:59]} 4. d4 {[%clk 0:03:02]}  cxd4 {[%clk 0:03:00]} 5. Nf3 {[%clk 0:03:03]}  Nc6 {[%clk 0:03:00]} 6. cxd4 {[%clk 0:03:04]}  e5 {[%clk 0:02:59]} 7. Nc3 {[%clk 0:03:04]}  Bb4 {[%clk 0:02:59]} 8. Bd2 {[%clk 0:03:05]}  Bxc3 {[%clk 0:03:00]} 9. Bxc3 {[%clk 0:03:06]}  e4 {[%clk 0:03:00]} 10. Ne5 {[%clk 0:03:07]}  Nxe5 {[%clk 0:03:01]} 11. dxe5 {[%clk 0:03:08]}  Ne7 {[%clk 0:03:01]} 12. Qe2 {[%clk 0:03:07]}  O-O {[%clk 0:03:00]} 13. Rd1 {[%clk 0:03:03]}  Qxa2 {[%clk 0:03:00]} 14. Bb4 {[%clk 0:03:03]}  Nc6 {[%clk 0:02:58]} 15. Bxf8 {[%clk 0:03:01]}  Kxf8 {[%clk 0:02:58]} 16. Qxe4 {[%clk 0:02:53]}  Qxb2 {[%clk 0:02:41]} 17. f4 {[%clk 0:02:20]}  g6 {[%clk 0:02:16]} 18. Be2 {[%clk 0:01:46]}  Qc3+ {[%clk 0:01:36]} 19. Kf2 {[%clk 0:01:44]}  Bf5 {[%clk 0:01:27]} 20. Qe3 {[%clk 0:01:44]}  Qb4 {[%clk 0:01:21]} 21. Rd6 {[%clk 0:01:28]}  a5 {[%clk 0:00:53]} 22. g4 {[%clk 0:01:20]}  Be6 {[%clk 0:00:50]} 23. Kg3 {[%clk 0:00:34]}  Re8 {[%clk 0:00:19]} 24. Rf1 {[%clk 0:00:31]}  Bb3 {[%clk 0:00:15]} 25. Rc1 {[%clk 0:00:21]}  Qxd6 {[%clk 0:00:12]} 26. Qxb3 {[%clk 0:00:20]}  Qc7 {[%clk 0:00:10]} 27. Qb5 {[%clk 0:00:17]}  Ra8 {[%clk 0:00:09]} 28. Bf3 {[%clk 0:00:16]}  a4 {[%clk 0:00:09]} 29. Bxc6 {[%clk 0:00:16]}  bxc6 {[%clk 0:00:09]} 30. Rxc6 {[%clk 0:00:17]}  Qe7 {[%clk 0:00:09]} 31. Qb6 {[%clk 0:00:15]}  a3 {[%clk 0:00:07]} 32. Rc7 {[%clk 0:00:15]}  Qe8 {[%clk 0:00:06]} 33. Qc5+ {[%clk 0:00:14]}  Kg8 {[%clk 0:00:07]} 34. Ra7 {[%clk 0:00:14]}  a2 {[%clk 0:00:06]} 35. Qa5 {[%clk 0:00:13]}  Rxa7 {[%clk 0:00:04]} 36. Qxa7 {[%clk 0:00:14]}  Qe6 {[%clk 0:00:04]} 37. h3 {[%clk 0:00:14]}  Qb3+ {[%clk 0:00:03]} 38. Kh4 {[%clk 0:00:14]}  Qb2 {[%clk 0:00:04]} 39. Qa8+ {[%clk 0:00:12]}  Kg7 {[%clk 0:00:04]} 40. Qd8 {[%clk 0:00:12]}  a1=Q {[%clk 0:00:04]} 41. Qf6+ {[%clk 0:00:12]}  Kg8 {[%clk 0:00:03]} 42. Qd8+ {[%clk 0:00:12]}  Kg7 {[%clk 0:00:04]} 43. Qf6+ {[%clk 0:00:13]}  Kg8 {[%clk 0:00:04]} 44. Qd8+ {[%clk 0:00:13]}  Kg7 {[%clk 0:00:05]} 1/2-1/2


[Site "https://www.chess.com"]